Cogmind - Beta 13 @@@ ROGUE MODE // 2024.05.31 @ 22:01:50 Player: Bace Troncons Result: Destroyed by S-10 Pest with Light Assault Rifle Performance ------------- Evolutions (0) 0 Regions Visited (1) 200 Robots Destroyed (18) 90 Value Destroyed (489) 489 Prototype IDs (0) 0 Alien Tech Used (0) 0 Bonus (0) 0 TOTAL SCORE: 779 Bonus ------- None Cogmind --------- Core Integrity 0/250 Matter 300/300 Energy 100/100 System Corruption 0% Temperature Cool (0) Movement Core (1400) Ox27 Location -10/Materials Parts ------- > --- POWER (1) -------- (None) > --- PROPULSION (2) --- (None) > --- UTILITY (2) ------ Huge Storage Unit Improved Terrain Scanner > --- WEAPON (2) ------- Beam Cannon > --- INVENTORY (25) --- Light Treads Light Treads Sensor Array Seismic Detector Improved Targeting Computer Core Shielding Core Shielding Medium Armor Plating Medium Armor Plating Medium Armor Plating Medium Armor Plating Hardened Light Armor Plating Hardened Light Armor Plating Hardened Light Armor Plating Hardened Light Armor Plating Trap Extractor (0/4) Trap Extractor (0/4) Small Laser Grenade Launcher Peak State ------------ > --- POWER ------------ Light Nuclear Core > --- PROPULSION ------- Light Treads Light Treads > --- UTILITY ---------- Huge Storage Unit Improved Terrain Scanner > --- WEAPON ----------- Assault Rifle Light Assault Rifle > --- INVENTORY -------- Light Treads Light Treads Sensor Array Seismic Detector Improved Targeting Computer Core Shielding Core Shielding Medium Armor Plating Medium Armor Plating Medium Armor Plating Medium Armor Plating Hardened Light Armor Plating Hardened Light Armor Plating Hardened Light Armor Plating Hardened Light Armor Plating Trap Extractor Trap Extractor Small Laser Grenade Launcher [Rating: 14] Favorites ----------- Power Light Nuclear Core Engine Ion Engine Power Core Light Nuclear Core Propulsion Light Treads Treads Light Treads Hover Unit Hover Unit Utility Improved Terrain Scanner Device Improved Terrain Scanner Storage Huge Storage Unit Weapon Light Assault Rifle Energy Gun Small Laser Energy Cannon Beam Cannon Ballistic Gun Light Assault Rifle Build | -11 -10 ------- Run | Yrd Mat Slots Evolved . | . . Power . | . . Propulsion . | . . Utility . | . . Weapon . | . . Parts Attached 15 | 7 8 Power 3 | 1 2 Engine 2 | 1 1 Core 1 | . 1 Reactor . | . . Propulsion 4 | 2 2 Treads 3 | 2 1 Leg . | . . Wheel . | . . Hover 1 | . 1 Flight . | . . Utility 4 | 2 2 Device 2 | 1 1 Storage 2 | 1 1 Processor . | . . Hackware . | . . Protection . | . . Artifact . | . . Weapon 4 | 2 2 Energy Gun 1 | . 1 Energy Cannon 1 | . 1 Ballistic Gun 2 | 2 . Ballistic Cannon . | . . Launcher . | . . Special Weapon . | . . Impact Weapon . | . . Slashing Weapon . | . . Piercing Weapon . | . . Special Melee Weapon . | . . Unidentified Prototypes . | . . Parts Lost 8 | . 8 Power 3 | . 3 Propulsion 3 | . 3 Utility . | . . Weapon 2 | . 2 Highest Loss Streak 4 | . 4 To Critical Strikes . | . . Average Slot Usage (%) 92 | . 92 Engine 5 | . 5 Core 7 | . 7 Treads 22 | . 22 Device 13 | . 13 Storage 14 | . 14 Energy Gun 1 | . 1 Energy Cannon 3 | . 3 Ballistic Gun 22 | . 22 Naked Turns . | . . Heaviest Build 90 | 12 90 Greatest Support 40 | 40 40 Greatest Overweight (x) 28 | 3 28 Average Overweight (x) 1 | . 2 Largest Inventory Capacity 25 | 8 25 Average Capacity 19 | 7 21 Most Carried 19 | 5 19 Average Carried 13 | 3 15 Final Capacity 25 | 8 25 Final Carried 19 | 5 19 Class Distribution -------------------- 100% | Mutant Dominant Class ---------------- Mutant | -10/Materials Resources | -11 -10 ----------- Run | Yrd Mat Matter Collected 512 | 310 202 Remotely . | . . Salvage Created 684 | 67 617 Parts 47 | 7 40 Haulers Intercepted 1 | . 1 Recyclers Shooed . | . . Parts Field Recycled . | . . Retrieved Matter . | . . Parts Self-Destructed . | . . Prevented . | . . Kills | -11 -10 ------- Run | Yrd Mat Combat Hostiles Destroyed 12 | . 12 Guns 12 | . 12 Classes Destroyed 5 | 1 4 Tunneler 3 | 3 . Hauler 1 | . 1 Operator 1 | . 1 Watcher 1 | . 1 Grunt 12 | . 12 Best Kill Streak 3 | 2 3 Combat Bots Only 2 | . 2 Max Kills in Single Turn 1 | 1 1 Gunslinging . | . . Exploded . | . . Melee . | . . Uniques/NPCs Destroyed . | . . Combat | -11 -10 -------- Run | Yrd Mat Hostile Shots Fired 140 | . 140 Missed 29 | . 29 Damage Taken 1151 | . 1151 Core 252 | . 252 Absorbed by Shields . | . . Regen/Repaired (Parts) 20 | . 20 Core Remaining (%) 100 | 100 . Volleys Fired 61 | 10 51 Largest 2 | 2 2 Hottest 80 | 40 80 Shots Fired 121 | 20 101 Gun 118 | 20 98 Cannon 3 | . 3 Launcher . | . . Special . | . . Kinetic 101 | 20 81 Thermal 20 | . 20 Explosive . | . . Electromagnetic . | . . Robot Hit Streak 15 | 4 15 Robot Miss Streak 3 | 1 3 Penetration Max . | . . Secondary Targets 2 | . 2 Max Gunslinging Chain 1 | . 1 Shots Hit Robots 83 | 11 72 Core Hits 38 | 3 35 Critical Kills 1 | . 1 Critical Parts Destroyed . | . . Critical Strikes 1 | . 1 Destroy 1 | . 1 Melee Attacks . | . . Impact . | . . Slashing . | . . Piercing . | . . Sneak Attacks . | . . Combat Hostiles . | . . Follow-up Attacks . | . . Damage Inflicted 845 | 97 748 Guns 827 | 97 730 Cannons 18 | . 18 Explosions . | . . Melee . | . . Ramming . | . . Kinetic 676 | 97 579 Thermal 169 | . 169 Explosive . | . . Electromagnetic . | . . Impact . | . . Slashing . | . . Piercing . | . . Highest Corruption . | . . Average Corruption . | . . Corruption Purged . | . . Corruption Blocked . | . . Overload Shots . | . . Overflow Damage . | . . Projectiles . | . . Explosions . | . . Melee . | . . Knockbacks . | . . Impact . | . . Kinetic . | . . Secondary . | . . Self-Inflicted Damage . | . . Shots . | . . Rammed . | . . Targets Rammed . | . . Kicked . | . . Crushed . | . . Highest Temperature 80 | . 80 Average Temperature 22 | . 22 Received Heat Transfer 453 | . 453 Siege Activations . | . . Robots Corrupted . | . . Combat Hostiles . | . . Parts Fried . | . . Impact Corruptions . | . . Robots Melted . | . . Combat Hostiles . | . . Parts Melted . | . . Heat Transferred 387 | . 387 Parts Sabotaged . | . . Parts Stolen . | . . Parts Stripped . | . . Power Chain Reactions . | . . Alert | -11 -10 ------- Run | Yrd Mat Peak Influence 159 | 15 159 Initial 9 | . 9 Average 51 | 5 59 Maximum Alert Level . | . . Low Security (%) 100 | 100 100 Level 1 . | . . Level 2 . | . . Level 3 . | . . Level 4 . | . . Level 5 . | . . High Security . | . . Max Security . | . . Squads Dispatched 2 | . 2 Investigation 1 | . 1 Extermination . | . . Reinforcement 1 | . 1 Assault . | . . Garrison . | . . Intercept . | . . Searches Triggered . | . . Construction Impeded . | . . Haulers Reinforced . | . . Active Scanning Responses . | . . Cargo Convoy Interrupts . | . . Stealth | -11 -10 --------- Run | Yrd Mat Distress Signals . | . . Communications Jammed . | . . Distress Signals . | . . Times Spotted 21 | . 21 Peak Tracking Total 3 | . 3 Tactical Retreats . | . . Traps | -11 -10 ------- Run | Yrd Mat Traps Triggered 1 | . 1 Indirectly . | . . Trap Hack Attempts . | . . Triggered . | . . Disarmed . | . . Reprogrammed . | . . Reused . | . . Traps Extracted . | . . Installed . | . . Triggered . | . . Machines | -11 -10 ---------- Run | Yrd Mat Machines Disabled . | . . Max in Single Turn . | . . Machines Repaired . | . . Machines Dismantled . | . . Machines Sabotaged . | . . Overloaded Fab Kills . | . . Hacking | -11 -10 --------- Run | Yrd Mat Machines Accessed 3 | . 3 Terminals 2 | . 2 Fabricators . | . . Repair Stations 1 | . 1 Recycling Units . | . . Scanalyzers . | . . Garrison Access . | . . Total Hacks 8 | . 8 Successful 4 | . 4 Failed 4 | . 4 Catastrophic 1 | . 1 Database Lockouts . | . . Manual . | . . Terminals 6 | . 6 Fabricators . | . . Repair Stations 2 | . 2 Recycling Units . | . . Scanalyzers . | . . Garrison Access . | . . Terminal Hacks 2 | . 2 Emergency Access Points 1 | . 1 Locate Traps 1 | . 1 Fabricator Hacks . | . . Repair Station Hacks 2 | . 2 Scan Component 1 | . 1 Repair 1 | . 1 Recycling Unit Hacks . | . . Scanalyzer . | . . Garrison Access Hacks . | . . Unauthorized Hacks . | . . Terminals . | . . Fabricators . | . . Repair Stations . | . . Recycling Units . | . . Scanalyzers . | . . Garrison Access . | . . Data Cores Recovered . | . . Used . | . . Hacking Detections 1 | . 1 Full Trace Events 1 | . 1 Feedback Events . | . . Feedback Blocked . | . . Robot Schematics Acquired . | . . Robots Built . | . . Authchips . | . . Time . | . . Total Robot Build Rating . | . . Part Schematics Acquired . | . . Parts Built . | . . Authchips . | . . Time . | . . Total Part Build Rating . | . . Parts Repaired 1 | . 1 Time 38 | . 38 Parts Recycled . | . . Recycled Matter . | . . Retrieved Matter . | . . Retrieved Components . | . . Parts Scanalyzed . | . . Part Schematics Acquired . | . . Parts Damaged . | . . Bothacking | -11 -10 ------------ Run | Yrd Mat Used RIF Installer . | . . Robots Hacked . | . . Non-combat . | . . Combat . | . . Robot Hacks Applied . | . . Relay Couplers Released . | . . Fabnet Peak Effective % . | . . Robots Rewired . | . . Allies Hacked . | . . Hacks Repelled . | . . Allies | -11 -10 -------- Run | Yrd Mat Total Allies . | . . Largest Group . | . . Highest-Rated Group . | . . Highest-Rated Ally . | . . Total Orders . | . . Ally Attacks . | . . Total Damage . | . . Kills . | . . Allies Corrupted . | . . Allies Melted . | . . Intel | -11 -10 ------- Run | Yrd Mat Robot Analysis Total . | . . Derelict Logs Recovered . | . . Drone Launches . | . . Drone Recoveries . | . . Exploration | -11 -10 ------------- Run | Yrd Mat Turns Passed 1545 | 217 1328 Spaces Moved 477 | 111 366 Core 17 | 15 2 Treads 458 | 96 362 Legs . | . . Wheels . | . . Hover 2 | . 2 Flight . | . . Fastest Speed 50 | 50 160 Average Speed 276 | 157 313 Slowest Speed 1450 | 200 1450 Overloaded Moves . | . . Propulsion Burnouts . | . . Robots Hopped . | . . Cave-ins Triggered . | . . Exploration Rate (%) 24 | 6 42 Regions Visited 1 Branch Regions . Pre-discovered Areas . | . . Known Exits Taken . | . . Unknown Exits Taken 1 | 1 . Scrap Searched . | . . Spaces Dug . | . . Terrain Destroyed . | . . Melee . | . . Projectile . | . . AOE . | . . Terrain Rammed . | . . Walls Destroyed . | . . Machines Disabled . | . . Actions | -11 -10 --------- Run | Yrd Mat Total 596 | 132 464 Wait 17 | . 17 Move 476 | 110 366 Hop . | . . Pick Up 22 | 5 17 Fast Attach 11 | 7 4 Attach 2 | . 2 Detach 1 | . 1 Swap 2 | . 2 Drop 4 | . 4 Fire 61 | 10 51 Melee . | . . Ram . | . . Kick . | . . Crush . | . . Escape Stasis . | . . Rewire . | . . Trap . | . . Miscellaneous . | . . Route ------- -11/Scrapyard -10/Materials (discovered 1 exit: [*Mat]) History --------- Turn | Location | Event 23 | -11/Scrapyard | Discovered new exit (range 16) 218 | -11/Scrapyard | Entered Materials 305 | -10/Materials | Build established: Mutant 391 | -10/Materials | Discovered new exit (range 15) 1064 | -10/Materials | Repaired Imp. Terrain Scanner 1091 | -10/Materials | Lost 3 parts (1p1n1w) 1136 | -10/Materials | Core integrity fell below 50% 1531 | -10/Materials | Core integrity fell below 20% 1546 | -10/Materials | Destroyed by S-10 Pest with Light Assault Rifle Last Messages --------------- 01145_ K-01 Serf collects debris. 01158_ Acquired 18 matter. 01158_ R-06 Scavenger collects Heat Sink. 01162_ R-06 Scavenger collects Sml. Laser. 01170_ R-06 Scavenger collects Ion Engine. 01197_ Acquired Beam Cannon. 01211_ K-01 Serf collects debris. 01239_ R-06 Scavenger collects Ion Engine. 01244_ R-06 Scavenger collects Aluminum Leg. 01424_ Acquired 10 matter. 01468_ O-16 Technician destroyed. 01475_ Acquired 3 matter. 01485_ R-06 Scavenger collects Datajack. 01500_ Lgt. Treads destroyed. 01504_ Acquired Hover Unit. 01505_ Acquired 10 matter. 01520_ Hover Unit destroyed. 01522_ Ion Engine destroyed. 01533_ Lgt. Assault Rifle destroyed. 01536_ R-06 Scavenger collects Hover Unit. Map ----- +----------------------------------------------------+ | | | | | | | ???#???????#???#?#?#??#??????????? | | ??####???#################??#????? | | ? ?#?# # ##???#???? | | # """ ???# """ # ##???????? | | # """ #??# """ R" # ###?#??#?? | | # """ ##?# """ """ # + #??#???# | | # #### """ # # #?#?##?? | | # """ # # % ###### #???#?#? | | # """ # # % = + ##??#### | | # """ + + % ==# ##?## ! | | # # #######+### #???# | | ####### ## % #???# | | ??#??# # ##### | | ???#?# | | ????## # | | ??##?# # | | ##?#?###### %#############+### | | ???#?##??## % ########## # " | | ##?######## # """ #"" # " | | ???# # # """ #"T !# " | | ???# # # """ #"" """ # | | ??## [[ sr + ### """ # | | ???#! [[ @# # #?# """ + | | #??# [[ # # #?#########+# | | #?## # #########?##?# | | ???######## # #?#??## T " | | ?#?#?#? ?## # "T" #???### " | | ???#????#?# # #?#?#?# " | | ???????#### +^ ^ ##?#??# | | #???????? # # ^^ ####### ![] | | #??????"??# # + + ![] | | ????????? # ############## ![] | | ???? ?????# #??#????#????####### | | ?#? ? ????# #???????##??##????#? | | ?? "???? ?# ??? ?? ??? ???#???# | | ?? ?"??? ?+ ????? ??????? ????? | | ???"????? # ""???"????????? ????? | | ??????????# """????????? ? ????? | | ????????#?# """? ??? ???????????? | | ?????????? ????????????????????? | | ?????????? ????????????????????? | | ?????????? ??? ????????????????? | | ???????????##????????????? ??????? | | ?????????????????????????????????? | | ???????????????#??#?????#?+??????? | | ?????????????????????????????????? | | ?????????????????????????????????? | +----------------------------------------------------+ Best States ------------- Heat Dissipation 25 Energy Generation 14 Energy Capacity 250 Matter Stores 300 Matter Capacity 300 Sight Range 16 Terrain Scan Range 16 Terrain Scan Density 10 Evasion (%) 40 Recoil Reduction 2 Item Schematics ----------------- None Robot Schematics ------------------ None Fabricated ------------ Nothing Alien Tech Used ----------------- None Achievements -------------- None Challenges ------------ None Game ------ Seed WarpGuidanceMaul Manual? 0 Play Time 00:08:36 Cumulative 97.3 hours Start 2024.05.31 @ 21:51:17 End 2024.05.31 @ 22:01:50 Sessions 1 Manual Loads 0 Difficulty Rogue Special Mode None Game No. 167 Rogue 167 Adventurer 0 Explorer 0 Win Type - Total 1 Types 1/0/0/0/0/0/0/0/0 Lore% 42 Gallery% 47 Achievement% 33 Wizard Run 0 Options --------- Layout 1 ASCII 0 Keyboard 1 Movement Numpad Keybinds 0 Fullscreen 1 Font 24/Smallcaps Map View 50x35 Zoom Use 0% Tactical HUD 1 Map Filters NONE Filters NONE Steam 1 RUN: f684891a-7325-45b8-b9ac-084354ac6853